Cogmind - Beta 13 X2 @@@ ROGUE MODE // 2024.02.01 @ 14:28:09 Player: Minty Result: Self-destructed Performance ------------- Evolutions (1) 500 Regions Visited (3) 600 Robots Destroyed (32) 160 Value Destroyed (790) 790 Prototype IDs (3) 60 Alien Tech Used (0) 0 Bonus (8) 8 TOTAL SCORE: 2118 Bonus ------- High Alert Combat Kills 8 Cogmind --------- Core Integrity 252/400 Matter 300/300 Energy 280/280 System Corruption 1% Temperature Cool (0) Movement Treading (160) Location -9/Mines Parts ------- > --- POWER (1) -------- Heavy Ion Engine > --- PROPULSION (2) --- Improved Treads > --- UTILITY (4) ------ Heat Sink Terrain Scanner Terrain Scan Processor > --- WEAPON (2) ------- Improved Assault Rifle Improved Assault Rifle > --- INVENTORY (5) ---- Improved Ion Engine Heavy Ion Engine Spread Laser Spread Laser Light EM Pulse Cannon Peak State ------------ > --- POWER ------------ Heavy Ion Engine > --- PROPULSION ------- Light Treads Improved Treads > --- UTILITY ---------- Heat Sink Terrain Scanner Terrain Scan Processor > --- WEAPON ----------- Improved Assault Rifle Improved Assault Rifle > --- INVENTORY -------- Improved Ion Engine Heavy Ion Engine Light Treads Improved EM Shotgun Light EM Pulse Cannon [Rating: 17] Favorites ----------- Power Ion Engine Engine Ion Engine Propulsion Light Treads Treads Light Treads Leg Aluminum Leg Hover Unit Hover Unit Utility Heat Sink Device Heat Sink Storage Large Storage Unit Processor Terrain Scan Processor Weapon Medium Laser Energy Gun Medium Laser Energy Cannon Beam Cannon Ballistic Gun Improved Assault Rifle Build | -11 -10 -9 -9 ------- Run | Yrd Mat Mat Min Slots Evolved 2 | . . 2 . Power . | . . . . Propulsion . | . . . . Utility 2 | . . 2 . Weapon . | . . . . Parts Attached 35 | . 15 20 . Power 4 | . . 4 . Engine 4 | . . 4 . Core . | . . . . Reactor . | . . . . Propulsion 10 | . 6 4 . Treads 7 | . 4 3 . Leg . | . . . . Wheel . | . . . . Hover 3 | . 2 1 . Flight . | . . . . Utility 11 | . 6 5 . Device 6 | . 2 4 . Storage 1 | . 1 . . Processor 4 | . 3 1 . Hackware . | . . . . Protection . | . . . . Artifact . | . . . . Weapon 10 | . 3 7 . Energy Gun 6 | . 2 4 . Energy Cannon 2 | . 1 1 . Ballistic Gun 2 | . . 2 . Ballistic Cannon . | . . . . Launcher . | . . . . Special Weapon . | . . . . Impact Weapon . | . . . . Slashing Weapon . | . . . . Piercing Weapon . | . . . . Special Melee Weapon . | . . . . Unidentified Prototypes 3 | . 1 2 . Parts Lost 6 | . . 5 1 Power . | . . . . Propulsion 3 | . . 2 1 Utility 2 | . . 2 . Weapon 1 | . . 1 . Highest Loss Streak 3 | . . 3 1 To Critical Strikes . | . . . . Average Slot Usage (%) 92 | . 98 86 88 Engine 12 | . 14 11 11 Treads 14 | . 14 13 22 Leg 3 | . 7 . . Hover 6 | . 6 6 . Device 16 | . 13 19 22 Storage 5 | . 10 . . Processor 8 | . 2 13 11 Energy Gun 14 | . 18 9 . Energy Cannon 4 | . 7 . . Ballistic Gun 6 | . 1 11 22 Naked Turns . | . . . . Heaviest Build 32 | 13 32 16 16 Greatest Support 46 | 20 46 43 43 Greatest Overweight (x) 1 | . 1 1 . Average Overweight (x) . | . . . . Largest Inventory Capacity 15 | 8 15 5 5 Average Capacity 8 | 8 11 5 5 Most Carried 15 | 6 15 5 5 Average Carried 7 | 6 10 4 5 Final Capacity 8 | 8 5 5 5 Final Carried 6 | 6 5 5 5 Class Distribution -------------------- 72% | Mutant 18% | Scavenger-Mutant 4% | Scavenger-Skirmisher 4% | Scavenger-Scout Dominant Class ---------------- Mutant | -10/Materials Mutant | -9/Materials Mutant | -9/Mines Resources | -11 -10 -9 -9 ----------- Run | Yrd Mat Mat Min Matter Collected 660 | 189 161 304 6 Remotely . | . . . . Salvage Created 1263 | . 641 622 . Parts 76 | . 39 37 . Haulers Intercepted 2 | . . 2 . Recyclers Shooed 3 | . 2 1 . Parts Field Recycled . | . . . . Retrieved Matter . | . . . . Parts Self-Destructed . | . . . . Prevented . | . . . . Kills | -11 -10 -9 -9 ------- Run | Yrd Mat Mat Min Combat Hostiles Destroyed 24 | . 11 13 . Guns 18 | . 6 12 . Cannons 5 | . 5 . . AOE 1 | . . 1 . Classes Destroyed 9 | . 5 4 . Builder 1 | . 1 . . Hauler 2 | . . 2 . Recycler 2 | . 2 . . Watcher 3 | . 3 . . Swarmer 6 | . 3 3 . Grunt 15 | . 8 7 . Brawler 1 | . . 1 . Duelist 1 | . . 1 . Sentry 1 | . . 1 . Best Kill Streak 5 | . 4 5 . Combat Bots Only 5 | . 3 5 . Max Kills in Single Turn 2 | . 2 2 . Gunslinging 1 | . 1 1 . Exploded 1 | . . 1 . Melee . | . . . . Uniques/NPCs Destroyed . | . . . . Combat | -11 -10 -9 -9 -------- Run | Yrd Mat Mat Min Hostile Shots Fired 150 | . 47 100 3 Missed 39 | . 11 28 . Damage Taken 1497 | . 450 890 157 Core 264 | . 116 148 . Absorbed by Shields . | . . . . Core Remaining (%) 76 | 100 53 . . Volleys Fired 84 | . 35 48 1 Largest 2 | . 2 2 2 Hottest 110 | . 110 110 46 Shots Fired 150 | . 60 88 2 Gun 116 | . 36 78 2 Cannon 34 | . 24 10 . Launcher . | . . . . Special . | . . . . Kinetic 50 | . . 48 2 Thermal 71 | . 45 26 . Explosive . | . . . . Electromagnetic 29 | . 15 14 . Robot Hit Streak 21 | . 11 21 3 Robot Miss Streak 4 | . 4 4 1 Penetration Max . | . . . . Secondary Targets 4 | . 1 3 . Max Gunslinging Chain 1 | . 1 1 . Shots Hit Robots 103 | . 42 60 1 Core Hits 53 | . 28 25 . Critical Kills . | . . . . Critical Parts Destroyed . | . . . . Critical Strikes 1 | . 1 . . Burn 1 | . 1 . . Melee Attacks . | . . . . Impact . | . . . . Slashing . | . . . . Piercing . | . . . . Sneak Attacks . | . . . . Combat Hostiles . | . . . . Follow-up Attacks . | . . . . Damage Inflicted 1942 | . 843 1086 13 Guns 1305 | . 431 861 13 Cannons 367 | . 314 53 . Explosions 259 | . 98 161 . Melee . | . . . . Ramming 11 | . . 11 . Kinetic 511 | . . 498 13 Thermal 916 | . 589 327 . Explosive . | . . . . Electromagnetic 504 | . 254 250 . Impact . | . . . . Slashing . | . . . . Piercing . | . . . . Highest Corruption 1 | . . 1 1 Average Corruption 1 | . . 1 1 Corruption Purged . | . . . . Corruption Blocked . | . . . . Effects 3 | . . 3 . Matter Fused 1 | . . 1 . Energy Discharges 1 | . . 1 . Alerts 1 | . . 1 . Overload Shots . | . . . . Overflow Damage 11 | . . 11 . Projectiles . | . . . . Explosions 11 | . . 11 . Melee . | . . . . Knockbacks . | . . . . Impact . | . . . . Kinetic . | . . . . Secondary . | . . . . Self-Inflicted Damage 113 | . 37 76 . Shots 4 | . 2 2 . Rammed 7 | . . 7 . Targets Rammed 7 | . . 7 . Kicked . | . . . . Crushed . | . . . . Highest Temperature 376 | . 376 100 . Average Temperature 76 | . 96 30 . Received Heat Transfer 498 | . 207 291 . Effects 2 | . 2 . . Shutdowns 1 | . 1 . . Interference 1 | . 1 . . Siege Activations . | . . . . Robots Corrupted . | . . . . Combat Hostiles . | . . . . Parts Fried 1 | . 1 . . Impact Corruptions . | . . . . Robots Melted . | . . . . Combat Hostiles . | . . . . Parts Melted 2 | . 1 1 . Heat Transferred 2202 | . 1508 694 . Parts Sabotaged . | . . . . Parts Stolen . | . . . . Parts Stripped . | . . . . Power Chain Reactions 4 | . 2 2 . Missiles Intercepted . | . . . . Alert | -11 -10 -9 -9 ------- Run | Yrd Mat Mat Min Peak Influence 469 | . 224 469 104 Initial 104 | . . 72 104 Average 164 | . 98 238 102 Maximum Alert Level 2 | . 1 2 . Low Security (%) 61 | 100 87 31 100 Level 1 34 | . 12 58 . Level 2 4 | . . 10 . Level 3 . | . . . . Level 4 . | . . . . Level 5 . | . . . . High Security . | . . . . Max Security . | . . . . Squads Dispatched 4 | . 3 1 . Investigation 4 | . 3 1 . Extermination . | . . . . Reinforcement . | . . . . Assault . | . . . . Garrison . | . . . . Intercept . | . . . . Searches Triggered . | . . . . Construction Impeded . | . . . . Haulers Reinforced . | . . . . Active Scanning Responses . | . . . . Cargo Convoy Interrupts . | . . . . Stealth | -11 -10 -9 -9 --------- Run | Yrd Mat Mat Min Distress Signals 1 | . 1 . . Communications Jammed . | . . . . Distress Signals . | . . . . Times Spotted 45 | . 16 22 7 Peak Tracking Total 13 | . 3 6 13 Tactical Retreats 2 | . . 2 . Traps | -11 -10 -9 -9 ------- Run | Yrd Mat Mat Min Traps Triggered 1 | . . 1 . Indirectly . | . . . . Trap Hack Attempts . | . . . . Triggered . | . . . . Disarmed . | . . . . Reprogrammed 1 | . . 1 . Reused . | . . . . Traps Extracted . | . . . . Installed . | . . . . Triggered . | . . . . Machines | -11 -10 -9 -9 ---------- Run | Yrd Mat Mat Min Machines Disabled 2 | . 1 1 . Max in Single Turn 1 | . 1 1 . Machines Repaired . | . . . . Machines Dismantled . | . . . . Machines Sabotaged . | . . . . Overloaded Fab Kills . | . . . . Hacking | -11 -10 -9 -9 --------- Run | Yrd Mat Mat Min Machines Accessed 6 | . 5 1 . Terminals 5 | . 4 1 . Fabricators . | . . . . Repair Stations . | . . . . Recycling Units 1 | . 1 . . Scanalyzers . | . . . . Garrison Access . | . . . . Total Hacks 23 | . 16 7 . Successful 12 | . 8 4 . Failed 11 | . 8 3 . Catastrophic 1 | . 1 . . Database Lockouts . | . . . . Manual 9 | . 7 2 . Terminals 21 | . 14 7 . Fabricators . | . . . . Repair Stations . | . . . . Recycling Units 2 | . 2 . . Scanalyzers . | . . . . Garrison Access . | . . . . Terminal Hacks 5 | . 2 3 . Alert Level 1 | . . 1 . Locate Traps 1 | . . 1 . Reprogram Traps 1 | . . 1 . Zone Layout 2 | . 2 . . Fabricator Hacks . | . . . . Repair Station Hacks . | . . . . Recycling Unit Hacks 1 | . 1 . . Report Inventory 1 | . 1 . . Scanalyzer . | . . . . Garrison Access Hacks . | . . . . Unauthorized Hacks 6 | . 5 1 . Terminals 5 | . 4 1 . Botnet 5 | . 4 1 . Fabricators . | . . . . Repair Stations . | . . . . Recycling Units 1 | . 1 . . Tunnel 1 | . 1 . . Scanalyzers . | . . . . Garrison Access . | . . . . Data Cores Recovered . | . . . . Used . | . . . . Hacking Detections 5 | . 4 1 . Full Trace Events 2 | . 2 . . Feedback Events . | . . . . Feedback Blocked . | . . . . Robot Schematics Acquired . | . . . . Robots Built . | . . . . Authchips . | . . . . Time . | . . . . Total Robot Build Rating . | . . . . Part Schematics Acquired . | . . . . Parts Built . | . . . . Authchips . | . . . . Time . | . . . . Total Part Build Rating . | . . . . Parts Repaired . | . . . . Time . | . . . . Parts Recycled . | . . . . Recycled Matter . | . . . . Retrieved Matter . | . . . . Retrieved Components . | . . . . Parts Scanalyzed . | . . . . Part Schematics Acquired . | . . . . Parts Damaged . | . . . . Bothacking | -11 -10 -9 -9 ------------ Run | Yrd Mat Mat Min Used RIF Installer . | . . . . Robots Hacked . | . . . . Non-combat . | . . . . Combat . | . . . . Robot Hacks Applied . | . . . . Relay Couplers Released . | . . . . Fabnet Peak Effective % . | . . . . Robots Rewired . | . . . . Allies Hacked . | . . . . Hacks Repelled . | . . . . Allies | -11 -10 -9 -9 -------- Run | Yrd Mat Mat Min Total Allies . | . . . . Largest Group . | . . . . Highest-Rated Group . | . . . . Highest-Rated Ally . | . . . . Total Orders . | . . . . Ally Attacks . | . . . . Total Damage . | . . . . Kills . | . . . . Allies Corrupted . | . . . . Allies Melted . | . . . . Intel | -11 -10 -9 -9 ------- Run | Yrd Mat Mat Min Robot Analysis Total . | . . . . Derelict Logs Recovered . | . . . . Drone Launches . | . . . . Drone Recoveries . | . . . . Exploration | -11 -10 -9 -9 ------------- Run | Yrd Mat Mat Min Turns Passed 941 | 2 484 445 10 Spaces Moved 502 | 2 282 214 4 Core . | . . . . Treads 240 | . 108 128 4 Legs 75 | 2 73 . . Wheels . | . . . . Hover 187 | . 101 86 . Flight . | . . . . Fastest Speed 56 | 120 56 56 160 Average Speed 119 | 120 118 119 160 Slowest Speed 190 | 120 190 160 160 Overloaded Moves . | . . . . Propulsion Burnouts . | . . . . Robots Hopped . | . . . . Cave-ins Triggered . | . . . . Exploration Rate (%) 20 | 2 47 23 8 Regions Visited 3 Branch Regions 1 Pre-discovered Areas 1 | . 1 . . Known Exits Taken . | . . . . Unknown Exits Taken 3 | 1 1 1 . Scrap Searched 1 | . . . 1 Spaces Dug . | . . . . Terrain Destroyed 16 | . 7 9 . Melee . | . . . . Projectile . | . . . . AOE 16 | . 7 9 . Terrain Rammed . | . . . . Walls Destroyed . | . . . . Machines Disabled . | . . . . Actions | -11 -10 -9 -9 --------- Run | Yrd Mat Mat Min Total 698 | 1 378 314 5 Wait 5 | . 3 2 . Move 499 | 1 281 213 4 Hop . | . . . . Pick Up 30 | . 22 8 . Fast Attach 17 | . 9 8 . Attach 5 | . . 5 . Detach 8 | . 3 5 . Swap 13 | . 6 7 . Drop 30 | . 19 11 . Fire 84 | . 35 48 1 Melee . | . . . . Ram . | . . . . Kick . | . . . . Crush 7 | . . 7 . Escape Stasis . | . . . . Rewire . | . . . . Trap . | . . . . Miscellaneous . | . . . . Route ------- -11/Scrapyard -10/Materials (discovered 3 exits: *Mat / [*Min x2]) -9/Materials (discovered 2 exits: [*Min x2]) -9/Mines History --------- Turn | Location | Event 1 | -11/Scrapyard | Discovered new exit (range 1) 3 | -11/Scrapyard | Entered Materials 356 | -10/Materials | Build established: Mutant 368 | -10/Materials | Discovered new exit (range 13) 456 | -10/Materials | Discovered new exit (range 15) 486 | -10/Materials | Discovered new exit (range 16) 487 | -10/Materials | Entered another Materials area 487 | -9/Materials | Evolved 2 slots: Utility x2 626 | -9/Materials | Lost 3 parts (1n1u1w) 732 | -9/Materials | Discovered new exit (range 11) 771 | -9/Materials | Discovered new exit (range 12) 932 | -9/Materials | Entered Mines 933 | -9/Mines | Assembled infested the area 942 | -9/Mines | Self-destructed Last Messages --------------- 00890_ Acquired Lgt. EM Pulse Cannon. 00927_ Hvy. Ion Engine severed. 00929_ Acquired Hvy. Ion Engine. 00930_ Acquired 39 matter. LOCATION=UNKNOWN GOAL=ESCAPE 00933_ ALERT: Infestation in the mines, dispatching Demolisher response squad. 00936_ C-30 ARC bursts open, deploying its payload. 00936_ D-53 Grenadier unfolds itself. 00937_ Searching scrap... 00937_ Found Flight Unit. 00937_ Found EM Pulse Gun. 00937_ Found Mace. 00937_ Found EM Shotgun. 00937_ Found 30 Matter. 00940_ Acquired 6 matter. 00940_ Lgt. Treads destroyed. 00941_ as-01338 destroyed. 00941_ T-07 Excavator destroyed. Map ----- +----------------------------------------------------+ | ?????????????????????????????????????????????????? | | ?????????????????????????????????????????????????? | | ?????????????????????????????????????????????????? | | ?????????????????????????????????????????????????? | | ?????????????????????????????????????????????????? | | ?????????????????????????????????????????????????? | | ?????????????????????????????????????????????????? | | ?????????????????????????????????????????????????? | | ?????????????????????????????????????????????????? | | ?????????????????????????????????????????????????? | | ??????????????????????????? ?????????????????????? | | ?????????????????????###?## ????????????????????? | | ????????????????????? ## ????????????????????? | | ????????????????????? r##???????????????????? | | ?????????????????????? r %#????????????????????? | | ?????????????????????? #????????????????????? | | ?????????????????????? uu##???????????????????? | | ??????????????????????# dd ???? ??????????????? | | ??????????????????????# ????????????????????? | | ???????????????#?????#? ?????????#??????????? | | ??????????????????????? ##???????????????????? | | ???????????????????#?### ##???????????????????? | | ???????????????????### #######?????????????? | | ????????????????????# ?? ???????????? | | ?????????????????????# #?????????????????? | | ??????????????#??????# @ #?#???????????????? | | ?????????????????????# /a #?#???????????????? | | ?????????????????????# a #???#?????????????? | | ??????????????#?????## | #### #?????????? | | ??????????????????# =%= a a$ #?????????? | | ???????????????#??# ####%= #?????????? | | ?????????????????? ????#!| ###### #?????????? | | ?????????????????#?????## ####??????#?#?????????? | | ????????????????????????####?????????????????????? | | ????????????????????#??????????#?????????????????? | | ???????????????????????????#?????????????????????? | | ???????????????????? ????????????????????????????? | | ??????????????????? ?????????????????????????????? | | ????????????????????????????????#????????????????? | | ?????????????????????????????????????????????????? | | ?????????????????????#???????????????????????????? | | ?????????????????????????????????????????????????? | | ?????????????????????????????????????????????????? | | ?????????????????????????????????????????????????? | | | | | | | | | | | | | +----------------------------------------------------+ Best States ------------- Heat Dissipation 38 Energy Generation 14 Energy Capacity 280 Matter Stores 300 Matter Capacity 300 Sight Range 18 Terrain Scan Range 14 Terrain Scan Density 85 Evasion (%) 55 Recoil Reduction 2 Item Schematics ----------------- None Robot Schematics ------------------ None Fabricated ------------ Nothing Alien Tech Used ----------------- None Achievements -------------- None Challenges ------------ None Game ------ Seed FissionOpticalInterpreter Manual? 0 Play Time 00:08:16 Cumulative 627.3 hours Start 2024.02.01 @ 14:20:12 End 2024.02.01 @ 14:28:09 Sessions 1 Manual Loads 0 Difficulty Rogue Special Mode None Game No. 597 Rogue 324 Adventurer 123 Explorer 150 Win Type - Total 25 Types 19/0/4/1/0/0/0/1/0 Lore% 80 Gallery% 91 Achievement% 76 Wizard Run 0 Options --------- ASCII 0 Keyboard 1 Movement Numpad Keybinds 0 Fullscreen 2 Font 18/X11Bold Map View 76x50 Zoom Use 0% Tactical HUD 1 Map Filters NONE Filters NONE Steam 1 RUN: 1a1533cc-8ece-4c7d-968b-02063d358868